bitfinex-derivatives/quotes_ETHF0:USTF0_20250209
["timestamp","ask_amount","ask_price","bid_price","bid_amount"]
[1739142451154,3.2078,2617.3,2616.8,0.00573745]
[1739142452556,3.2078,2617.6,2617.0,3.2078]
[1739142452752,4.1598,2617.8,2617.0,3.2078]
[1739142453251,20.75467887,2618.3,2617.6,3.2078]
[1739142453761,3.2078,2618.3,2617.6,3.2078]
[1739142453953,3.2078,2618.6,2617.6,3.2078]
[1739142454149,4.1263,2618.8,2617.6,3.2078]
[1739142454353,4.07261839,2618.7,2617.7,5.3538]
[1739142454556,4.8899,2618.8,2617.7,5.3538]
[1739142454954,18.84802374,2619.2,2618.5,7.66006365]
[1739142455261,3.2078,2620.1,2619.1,3.2078]
[1739142455558,4.0679,2620.8,2619.5,3.2078]
[1739142455766,4.0679,2620.8,2619.2,5.07345106]
[1739142455767,3.2078,2619.9,2619.2,5.07345106]
[1739142455969,3.2078,2619.6,2619.2,5.07345106]
[1739142456263,3.2078,2619.6,2619.3,0.00572541]
[1739142457469,3.2078,2619.6,2618.5,3.50208449]
[1739142457470,4.23959746,2619.5,2618.2,3.2078]
[1739142457671,3.2078,2619.1,2618.1,7.66006365]
[1739142457863,3.2078,2619.1,2618.1,3.2078]
[1739142458562,3.2078,2619.1,2618.0,4.1431]
[1739142458766,3.15246,2619.3,2618.3,0.00572541]
[1739142458767,3.2078,2618.8,2618.3,0.00572541]
[1739142459469,3.2078,2618.4,2617.5,3.2078]
[1739142459668,3.2078,2618.4,2617.3,8.71516365]
[1739142460672,3.2078,2618.4,2617.3,9.00932802]
[1739142460866,3.2078,2618.4,2617.6,0.00572541]
[1739142461166,3.97151,2618.4,2617.6,0.00572541]
[1739142461366,3.2078,2618.4,2617.6,0.00572541]
[1739142461765,2.1357,2618.7,2617.6,3.21352541]
[1739142461965,0.00568526,2618.9,2618.1,4.45226365]
[1739142462273,3.2078,2619.5,2618.7,3.2078]
[1739142462472,3.2078,2619.5,2618.5,3.2078]
[1739142462874,3.2078,2619.0,2618.2,7.3028]
[1739142463370,0.00572541,2618.9,2618.3,0.00572541]
[1739142465264,0.00572541,2618.9,2618.7,3.2078]
[1739142465470,0.00572541,2618.9,2618.8,3.2078]
[1739142465671,0.00572541,2618.9,2618.4,5.1743]
[1739142465876,0.00572541,2618.9,2618.7,3.2078]
[1739142466475,0.00572541,2618.9,2618.4,1.9665]
[1739142466771,0.00572541,2618.9,2618.3,0.00572541]
[1739142469580,0.00572541,2618.9,2618.8,3.2078]
[1739142469769,3.2078,2619.4,2618.5,5.2877]
[1739142470886,3.2078,2619.4,2618.5,3.2078]
[1739142471279,3.2078,2619.4,2618.3,0.00572541]
[1739142471474,3.97124,2619.4,2618.3,0.31078684]
[1739142471881,3.2078,2619.4,2618.3,0.31078684]
[1739142472078,3.97121,2619.4,2618.3,0.31078684]
[1739142472479,3.2078,2619.0,2618.3,0.00572541]
[1739142473386,3.97134,2619.0,2618.3,0.00572541]
[1739142473582,6.35726,2619.3,2618.3,0.00572541]
[1739142473990,3.2078,2619.3,2618.3,0.00572541]
[1739142474188,3.2078,2619.3,2618.8,3.2078]
[1739142474679,3.2078,2619.3,2618.5,3.2078]
[1739142474879,3.97127,2619.3,2618.5,3.2078]
[1739142475280,3.97127,2619.3,2618.4,2.0554]
[1739142475281,3.2078,2619.3,2618.3,0.00572541]
[1739142475476,0.76349,2619.2,2618.3,0.00572541]
[1739142475790,3.2078,2619.3,2618.3,0.00572541]
[1739142475984,0.76359,2618.8,2618.3,0.00572541]
[1739142476185,3.2078,2618.8,2618.3,0.00572541]
[1739142476388,2.0458,2619.0,2618.3,0.00572541]
[1739142476586,2.80934,2619.0,2618.3,0.00572541]
[1739142476790,2.0458,2619.0,2618.3,0.00572541]
[1739142477486,2.80934,2619.0,2618.3,0.00572541]
[1739142477987,2.0458,2619.0,2618.3,0.00572541]
[1739142479194,3.2078,2619.4,2618.5,3.2078]
[1739142480083,3.2078,2619.1,2618.3,2.09302541]
[1739142480389,4.96559191,2619.0,2618.3,0.00572541]
[1739142480590,4.20206191,2619.0,2618.3,0.00572541]
[1739142480783,4.96560191,2619.0,2618.3,0.00572541]
[1739142480980,4.58456191,2619.0,2618.3,0.00572541]
[1739142481290,4.9427017,2619.0,2618.3,0.00572541]
[1739142481489,0.7636,2618.8,2618.3,0.00572541]
[1739142481682,5.93042,2618.7,2618.3,0.00572541]
[1739142481884,5.1668,2618.7,2618.3,0.00572541]
[1739142482281,7.2715,2618.9,2618.3,0.00572541]
[1739142483387,0.76363,2618.7,2618.3,0.00572541]
[1739142484085,3.2078,2618.6,2618.3,0.00572541]
[1739142484292,0.76369,2618.5,2618.3,0.00572541]
[1739142484596,0.7637,2618.5,2618.3,0.00572541]
[1739142484893,0.76371,2618.4,2617.5,3.2078]
[1739142485088,3.2078,2617.7,2617.2,5.2609]
[1739142485289,3.2078,2617.7,2616.9,0.29717314]
[1739142485486,3.2078,2617.5,2616.8,3.2078]
[1739142485688,3.2078,2617.5,2616.5,7.4344]
[1739142485988,0.00572541,2617.3,2616.7,0.00572541]
[1739142491992,0.00572541,2617.3,2617.0,4.00503169]
[1739142492201,0.00572541,2617.3,2617.2,3.2078]
[1739142492696,0.00572541,2617.3,2617.0,4.00503169]
[1739142493896,0.00572541,2617.3,2616.9,3.2078]
[1739142494098,0.00572541,2617.3,2616.8,2.1686]
[1739142495002,3.2078,2617.2,2616.7,0.00572541]
[1739142495791,3.2078,2617.1,2616.7,0.00572541]
[1739142495991,0.76429,2616.5,2615.6,3.2078]
[1739142496192,3.2078,2616.2,2615.3,4.00503169]
[1739142497007,3.2078,2616.2,2615.2,3.2078]
[1739142497294,0.00572541,2616.0,2615.5,0.00572541]
[1739142497495,3.2078,2615.9,2615.5,0.00572541]
[1739142497999,0.00572541,2616.0,2615.5,0.00572541]
[1739142498297,0.00572541,2616.0,2615.6,4.00503169]
[1739142498498,0.00572541,2616.0,2615.6,7.21283169]
[1739142499397,0.00572541,2616.0,2615.6,7.51817999]
[1739142499597,0.00572541,2616.0,2615.5,0.00572541]
[1739142500103,6.26422541,2616.0,2615.5,0.00572541]
[1739142501702,2.08792541,2616.0,2615.5,0.00572541]
[1739142503691,4.1472,2616.7,2615.6,4.00503169]
[1739142503897,4.1472,2616.7,2615.7,3.2078]
[1739142504101,3.2078,2616.4,2615.7,3.2078]
[1739142504497,3.2078,2616.4,2615.5,0.00572541]
[1739142504702,3.2078,2616.0,2615.5,0.00572541]
[1739142505102,3.2078,2615.7,2615.5,0.00572541]
[1739142505699,0.00572541,2616.2,2615.5,0.00572541]
[1739142505999,0.00572541,2616.2,2615.5,3.21352541]
[1739142506200,0.00572541,2616.2,2615.6,4.00503169]
[1739142507601,0.00572541,2616.2,2615.5,5.31412541]
[1739142507804,0.00572541,2616.2,2615.5,0.00572541]
[1739142508402,0.00572541,2616.2,2615.6,7.21283169]
[1739142508802,0.00572541,2616.2,2615.7,2.1052]
[1739142510212,0.00572541,2616.2,2615.9,7.21283169]
[1739142510397,2.0453,2617.2,2616.0,0.76438]
[1739142510602,2.0453,2617.2,2616.3,3.2078]
[1739142510803,2.0453,2617.2,2616.5,4.00503169]
[1739142511009,3.2078,2617.1,2616.4,1.9713]
[1739142511201,3.2078,2617.1,2615.7,2.40428785]
[1739142511202,7.2826015,2617.1,2616.0,3.2078]
[1739142511408,3.9719,2617.1,2616.0,3.2078]
[1739142512409,3.2078,2617.1,2616.0,3.2078]
[1739142513010,3.2078,2617.1,2616.3,3.2078]
[1739142513318,4.4273,2617.2,2616.3,3.2078]
[1739142513914,4.4273,2617.2,2616.0,3.2078]
[1739142513915,3.9719,2617.1,2616.0,3.2078]
[1739142514107,3.2078,2616.8,2616.0,3.2078]
[1739142515012,3.97199,2616.8,2616.0,3.2078]
[1739142515706,3.2078,2616.5,2615.7,4.0765]
[1739142515906,0.76423,2616.6,2615.7,4.0765]
[1739142516107,3.2078,2616.5,2615.5,0.00572541]
[1739142516310,2.87201,2616.4,2615.5,0.00572541]
[1739142516605,2.1077,2616.4,2615.5,0.00572541]
[1739142516809,3.2078,2616.1,2615.5,0.00572541]
[1739142517005,5.3155,2616.4,2615.5,0.00572541]
[1739142517311,3.2078,2616.1,2615.5,0.00572541]
[1739142517612,3.2078,2615.7,2615.5,0.00572541]
[1739142518011,5.99691,2615.7,2615.0,3.2078]
[1739142518212,4.1275,2615.6,2615.0,3.2078]
[1739142518816,5.2324,2615.7,2615.0,3.2078]
[1739142519215,0.00572541,2615.6,2615.1,0.00572541]
[1739142519410,0.00572541,2615.6,2615.5,3.2078]
[1739142519719,3.97203,2616.6,2615.5,3.2078]
[1739142519917,2.0246,2616.4,2615.5,3.2078]
[1739142520219,3.2078,2616.3,2615.5,3.2078]
[1739142520619,3.2078,2616.0,2615.2,7.3491]
[1739142520815,3.2078,2616.0,2615.2,5.1872]
[1739142522317,3.97222,2616.0,2615.2,5.1872]
[1739142522622,3.2078,2616.0,2615.2,5.1872]
[1739142523317,3.2078,2616.0,2615.3,4.00503169]
[1739142523520,0.35852018,2616.3,2615.3,4.00503169]
[1739142523724,3.2078,2616.2,2615.5,3.2078]
[1739142525216,3.2078,2615.9,2615.2,5.1872]
[1739142525416,3.2078,2615.9,2615.1,0.00572541]
[1739142525613,3.2078,2615.4,2615.1,0.00572541]
[1739142525822,2.381,2616.0,2615.1,0.00572541]
[1739142525823,3.2078,2615.3,2615.1,0.00572541]
[1739142526019,3.97243,2615.3,2615.1,0.00572541]
[1739142526327,3.2078,2615.3,2615.1,0.00572541]
[1739142526522,0.76464,2615.2,2615.1,0.00572541]
[1739142526712,3.97244,2615.3,2615.1,0.00572541]
[1739142526919,3.2078,2615.3,2615.1,0.00572541]
[1739142527118,4.40749884,2615.2,2614.0,5.2728]
[1739142527413,3.2078,2614.8,2614.0,5.2728]
[1739142527621,3.2078,2614.8,2614.0,5.57268643]
[1739142527817,0.7647,2615.0,2614.0,5.57268643]
[1739142528125,2.7634,2615.3,2614.0,3.2078]
[1739142528126,3.2078,2614.8,2614.0,3.2078]
[1739142528320,3.21353647,2614.8,2614.2,0.00573647]
[1739142528519,3.2078,2614.5,2614.2,0.00573647]
[1739142528720,4.05425215,2614.7,2614.2,0.00573647]
[1739142528923,3.2078,2614.4,2614.2,0.00573647]
[1739142529719,3.97268,2614.4,2614.2,0.00573647]
[1739142529921,3.2078,2614.4,2614.2,0.00573647]
[1739142531924,3.2078,2614.4,2613.0,2.44554915]
[1739142531925,3.97984468,2614.3,2613.0,2.44554915]
[1739142532130,0.76521,2613.3,2612.3,3.2078]
[1739142532321,10.35801169,2613.4,2612.2,0.3069763]
[1739142532522,3.2078,2613.1,2612.0,4.2335]
[1739142532722,3.2078,2613.1,2612.2,4.00503169]
[1739142532929,3.97984468,2613.2,2612.2,4.00503169]
[1739142533121,0.00573647,2612.9,2612.4,0.00573647]
[1739142533430,3.2078,2612.8,2612.4,0.00573647]
[1739142533628,2.38,2612.7,2611.4,2.0088]
[1739142533824,3.2078,2612.2,2611.4,2.0088]
[1739142534624,3.2078,2612.2,2611.4,2.31135513]
[1739142534824,2.0927,2612.5,2611.4,2.31135513]
[1739142534825,5.3005,2612.5,2611.5,0.00573647]
[1739142535139,3.2078,2611.8,2611.5,0.00573647]
[1739142535626,3.2078,2612.2,2611.5,0.00573647]
[1739142535827,3.2078,2611.9,2611.5,0.00573647]
[1739142536131,3.2078,2611.6,2611.5,0.00573647]
[1739142536324,3.2078,2611.6,2610.4,7.68734552]
[1739142536524,3.2078,2611.3,2610.4,7.68734552]
[1739142536729,3.2078,2611.3,2610.5,2.30543334]
[1739142537126,1.9774,2611.5,2610.5,2.30543334]
[1739142537327,3.2078,2611.7,2610.7,0.76593]
[1739142537533,0.00573647,2611.3,2611.1,3.2078]
[1739142538130,0.00573647,2611.3,2610.9,3.2078]
[1739142538337,0.00573647,2611.3,2611.2,3.2078]
[1739142540232,0.00573647,2611.3,2611.2,9.2078]
[1739142540733,3.9731,2612.3,2611.2,13.68734552]
[1739142540928,3.9731,2612.3,2611.6,3.2078]
[1739142541228,3.2078,2612.9,2611.7,3.2078]
[1739142541536,3.2078,2612.9,2611.8,3.2078]
[1739142541828,3.2078,2613.2,2611.8,8.12384031]
[1739142542037,0.00573647,2612.6,2612.1,0.00573647]
[1739142542832,0.00573647,2612.6,2612.1,3.21353647]
[1739142543728,0.00573647,2612.6,2612.1,0.00573647]
[1739142544031,4.29310189,2612.5,2612.1,0.00573647]
[1739142544329,2.1395,2612.5,2612.1,0.00573647]
[1739142544830,0.00573647,2612.6,2612.1,0.00573647]
[1739142545032,0.00573647,2612.6,2612.1,3.21353647]
[1739142547239,0.00573647,2612.6,2612.4,3.2078]
[1739142547930,0.00573647,2612.6,2612.4,9.2078]
[1739142548135,0.00573647,2612.6,2612.4,3.97325]
[1739142548526,0.00573647,2612.6,2612.4,9.97324]
[1739142549029,4.0742,2613.7,2612.4,13.68734552]
[1739142549231,2.0182,2613.7,2613.1,3.2078]
[1739142550036,2.0182,2613.7,2613.0,3.2078]
[1739142550330,0.00573647,2613.7,2613.1,3.2078]
[1739142550531,0.00573647,2613.7,2613.6,3.2078]
[1739142551123,0.00573647,2613.7,2613.3,3.2078]
[1739142551527,0.00573647,2613.7,2613.0,3.2078]
[1739142551730,0.00573647,2613.7,2612.7,3.2078]
[1739142552436,3.2078,2613.5,2612.0,7.68734552]
[1739142552629,3.2078,2613.2,2612.1,0.30731264]
[1739142552830,3.2078,2613.2,2612.3,3.2078]
[1739142553036,3.2078,2613.2,2612.6,3.2078]
[1739142553537,6.3001,2613.4,2612.6,3.2078]
[1739142553831,0.77082647,2613.7,2612.8,0.76532]
[1739142553832,0.00573647,2613.7,2612.8,0.76532]
[1739142554032,0.00573647,2613.7,2612.9,3.2078]
[1739142555331,4.10889364,2613.6,2612.6,5.329]
[1739142555528,2.0869,2613.5,2612.6,5.62646563]
[1739142556235,2.0869,2613.5,2613.0,3.2078]
[1739142558135,3.2078,2613.3,2612.4,3.2078]
[1739142558432,2.0869,2613.5,2612.7,3.2078]
[1739142558626,3.2078,2613.1,2612.4,3.2078]
[1739142558833,3.2078,2613.1,2612.3,2.0722]
[1739142559124,3.2078,2613.1,2611.3,1.91442]
[1739142559125,0.76528,2613.0,2611.7,7.22910474]
[1739142559331,8.45233978,2613.0,2612.0,3.2078]
[1739142559537,4.1316,2613.0,2611.9,3.51795926]
[1739142559941,4.1316,2613.0,2612.0,4.02130474]
[1739142560134,3.2078,2612.7,2611.9,3.2078]
[1739142560343,4.38430192,2612.9,2611.9,3.2078]
[1739142560344,3.97321,2612.6,2611.9,3.2078]
[1739142560638,5.95301,2612.6,2611.9,3.2078]
[1739142560941,3.2078,2612.2,2611.1,3.2078]
[1739142561135,3.2078,2611.5,2610.5,7.22910474]
[1739142561345,3.2078,2611.5,2610.5,7.52451902]
[1739142561639,3.2078,2611.5,2610.5,3.50321428]
[1739142562033,3.2078,2611.5,2610.7,0.00573647]
[1739142562034,0.00573647,2611.3,2610.7,0.00573647]
[1739142562235,0.00573647,2611.3,2610.8,3.2078]
[1739142562443,0.00573647,2611.3,2611.0,3.2078]
[1739142562637,6.536,2612.1,2611.1,3.2078]
[1739142562836,3.2078,2611.9,2610.8,2.0112]
[1739142563242,3.2078,2611.9,2611.2,3.2078]
[1739142563830,0.00573647,2611.8,2610.9,3.2078]
[1739142564543,0.00573647,2611.8,2610.8,2.0112]
[1739142564735,0.00573647,2611.8,2610.7,0.00573647]
[1739142564736,3.2078,2611.6,2610.7,0.00573647]
[1739142565444,0.00573647,2611.8,2611.1,3.2078]
[1739142567736,0.00573647,2611.8,2611.5,3.2078]
[1739142568143,0.00573647,2611.8,2611.1,3.51494591]
[1739142568443,0.00573647,2611.8,2611.1,5.54624591]
[1739142569240,3.97918647,2611.8,2610.8,2.0905]
[1739142569441,2.0618,2611.7,2610.8,2.0905]
[1739142569741,9.11634821,2611.7,2610.8,2.0905]
[1739142569947,8.35068821,2611.7,2610.8,2.0905]
[1739142570148,4.2426,2611.7,2610.8,2.0905]
[1739142570547,5.00827,2611.7,2610.8,2.0905]
[1739142570746,4.2426,2611.7,2610.8,2.0905]
[1739142570945,3.97354,2611.5,2610.7,0.00573647]
[1739142571254,0.7658,2611.3,2610.7,0.00573647]
[1739142572351,3.2078,2611.2,2610.7,0.00573647]
[1739142573445,0.00573647,2611.8,2611.0,4.48157772]
[1739142573641,0.00573647,2611.8,2611.2,3.2078]
[1739142573840,0.00573647,2611.8,2611.5,3.2078]
[1739142576146,0.00573647,2611.8,2611.1,2.148]
[1739142576147,3.21353647,2611.8,2611.1,2.148]
[1739142576348,3.97918647,2611.8,2611.0,0.00326378]
[1739142577341,3.21353647,2611.8,2611.0,0.00326378]
[1739142577749,3.2078,2611.1,2611.0,0.00326378]
[1739142577943,7.38802865,2611.7,2611.0,0.00326378]
[1739142578148,3.2078,2611.7,2611.0,0.00326378]
[1739142578953,0.00573647,2611.8,2611.2,3.97359]
[1739142579154,3.2078,2612.6,2611.4,7.68937772]
[1739142579350,3.2078,2612.6,2611.6,3.2078]
[1739142579854,3.2078,2612.6,2611.9,3.2078]
[1739142580150,4.1397,2612.7,2611.9,3.2078]
[1739142580457,0.00573647,2612.5,2611.9,3.2078]
[1739142580656,0.00573647,2612.5,2612.0,0.00573647]
[1739142581250,0.00573647,2612.5,2612.0,3.21353647]
[1739142581953,0.00573647,2612.5,2612.0,0.00573647]
[1739142582364,2.76717647,2612.5,2612.0,0.00573647]
[1739142582556,2.2057,2612.4,2612.0,0.00573647]
[1739142583561,3.2078,2612.3,2612.0,0.00573647]
[1739142583760,0.76554,2612.2,2612.0,0.00573647]
[1739142584064,0.76555,2612.1,2611.1,2.1063]
[1739142584260,3.2078,2612.0,2611.1,2.1063]
[1739142585062,3.2078,2612.0,2611.3,0.00573647]
[1739142585671,2.2406,2612.2,2611.3,0.00573647]
[1739142585874,5.4484,2612.2,2611.3,0.00573647]
[1739142586165,3.2078,2611.9,2611.3,0.00573647]
[1739142587976,0.35905515,2612.1,2611.3,0.00573647]
[1739142587977,3.2078,2611.6,2611.3,0.00573647]
[1739142588375,3.2078,2611.6,2609.7,3.2078]
[1739142588376,4.48157772,2611.1,2609.7,3.2078]
[1739142588571,4.48157772,2611.1,2609.5,2.0495]
[1739142588572,3.2078,2610.6,2609.5,2.0495]
[1739142588769,4.84085565,2611.1,2609.9,3.2078]
[1739142588770,4.0672434,2611.0,2609.9,3.2078]
[1739142588968,3.2078,2610.9,2609.9,3.2078]
[1739142589170,2.2067,2610.8,2609.9,3.2078]
[1739142589377,2.99020647,2610.7,2610.1,0.00573647]
[1739142589576,3.2078,2610.4,2610.1,0.00573647]
[1739142589772,3.97386,2610.4,2610.1,0.00573647]
[1739142590171,3.2078,2610.4,2610.1,0.00573647]
[1739142590678,3.97385,2610.4,2610.1,0.00573647]
[1739142591574,2.1806,2610.3,2610.1,0.00573647]
[1739142591878,0.76614,2610.1,2608.9,3.2078]
[1739142592071,3.2078,2610.1,2609.2,3.2078]
[1739142592272,2.2432,2610.0,2609.2,3.2078]
[1739142593077,2.2432,2610.0,2609.3,0.00574801]
[1739142593480,3.2078,2610.1,2609.3,0.00574801]
[1739142594877,7.6636,2610.5,2609.5,3.2078]
[1739142595281,5.2886,2610.5,2609.5,3.2078]
[1739142595481,3.2078,2609.8,2609.3,0.00574801]
[1739142596984,2.375,2610.4,2609.3,0.00574801]
[1739142597191,2.375,2610.4,2609.5,3.2078]
[1739142597486,2.0808,2610.5,2609.5,3.2078]
[1739142598181,2.0808,2610.5,2609.6,2.92016]
[1739142598383,2.0808,2610.5,2610.0,3.2078]
[1739142598978,2.0808,2610.5,2609.6,2.1539]
[1739142598979,2.0808,2610.5,2609.7,3.2078]
[1739142599176,3.22923,2610.5,2609.6,2.1539]
[1739142599386,2.0808,2610.5,2609.6,2.1539]
[1739142600081,2.0808,2610.5,2609.8,3.2078]
[1739142600286,2.0808,2610.5,2609.6,2.1539]
[1739142600482,3.2078,2610.3,2609.5,3.2078]
[1739142601688,2.0808,2610.5,2610.1,3.2078]
[1739142602183,7.57024952,2610.4,2609.5,3.2078]
[1739142602583,2.0808,2610.5,2609.8,3.2078]
[1739142603290,0.76608,2610.3,2609.8,3.2078]
[1739142603591,5.50066295,2610.4,2609.8,3.2078]
[1739142603788,0.3824,2610.2,2609.5,3.2078]
[1739142603984,3.2078,2610.2,2609.5,3.2078]
[1739142604383,2.0808,2610.5,2609.5,3.2078]
[1739142604785,2.0808,2610.5,2609.8,3.2078]
[1739142604983,3.2078,2610.3,2609.8,3.2078]
[1739142605187,3.97389,2610.3,2609.5,3.2078]
[1739142605389,3.97388,2610.3,2609.5,3.2078]
[1739142605587,0.76611,2610.2,2609.5,3.2078]
[1739142605788,3.2078,2610.3,2609.5,3.2078]
[1739142606290,2.0808,2610.5,2609.3,0.30707036]
[1739142606291,2.0808,2610.5,2609.8,3.2078]
[1739142606885,2.0808,2610.5,2610.1,3.2078]
[1739142608090,2.0808,2610.5,2609.3,0.00574801]
[1739142608091,3.2078,2610.4,2609.7,3.2078]
[1739142608491,2.0808,2610.5,2609.7,3.2078]
[1739142608991,2.22423647,2610.7,2610.0,3.2078]
[1739142609189,2.22423647,2610.7,2610.1,3.2078]
[1739142609791,0.00573647,2610.7,2610.1,3.2078]
[1739142610001,3.2078,2611.4,2610.4,3.2078]
[1739142610197,3.2078,2611.4,2610.6,3.2078]
[1739142611198,0.00574801,2611.3,2610.7,0.00574801]
[1739142611495,0.00574801,2611.3,2610.9,3.2078]
[1739142612294,2.0788,2611.8,2611.2,3.2078]
[1739142612594,3.2078,2612.0,2611.2,3.2078]
[1739142612795,4.2516,2612.2,2611.2,3.2078]
[1739142613091,4.2516,2612.2,2611.3,2.2328]
[1739142613300,4.2516,2612.2,2611.5,3.2078]
[1739142613600,0.00574801,2612.0,2611.5,3.2078]
[1739142613795,0.00574801,2612.0,2611.8,3.2078]
[1739142614290,2.071,2613.0,2611.8,9.2078]
[1739142614486,4.48157772,2613.9,2612.7,3.2078]
[1739142614487,3.2078,2613.7,2612.7,3.2078]
[1739142614690,13.9331646,2614.0,2612.7,3.2078]
[1739142614887,0.06579031,2613.9,2613.0,3.2078]
[1739142615095,3.2078,2613.7,2612.7,3.2078]
[1739142615496,0.00574801,2613.5,2612.9,0.00574801]
[1739142615691,0.00574801,2613.5,2613.1,3.2078]
[1739142617394,3.2078,2614.3,2613.1,3.2078]
[1739142617589,3.2078,2614.3,2613.0,2.371]
[1739142617590,3.2078,2614.3,2613.7,3.2078]
[1739142617788,3.2078,2614.3,2613.4,3.2078]
[1739142618493,3.2078,2614.3,2613.7,3.2078]
[1739142618693,2.071,2614.5,2613.7,3.2078]
[1739142620905,3.2078,2614.6,2613.7,3.2078]
[1739142621095,3.2078,2614.9,2614.0,3.2078]
[1739142621704,3.2078,2614.9,2614.2,0.00574801]
[1739142622097,3.2078,2614.6,2614.2,0.00574801]
[1739142623003,9.56225772,2615.1,2614.2,0.00574801]
[1739142623004,3.2078,2614.9,2614.2,0.00574801]
[1739142623201,4.316,2615.1,2614.7,3.2078]
[1739142624898,7.68937772,2615.5,2614.2,0.31434656]
[1739142625101,3.2078,2615.5,2614.5,3.2078]
[1739142626499,3.2078,2615.5,2614.6,2.1612]
[1739142626707,4.3106,2615.7,2614.6,2.1612]
[1739142627405,3.2078,2615.8,2615.1,3.2078]
[1739142627707,3.2078,2615.8,2614.8,3.2078]
[1739142628803,2.1911,2616.1,2614.8,3.2078]
[1739142628804,3.2078,2615.5,2614.8,3.2078]
[1739142630407,2.1911,2616.1,2615.2,3.2078]
[1739142630904,2.1911,2616.1,2615.5,3.2078]
[1739142631401,2.1911,2616.1,2615.5,3.21353691]
[1739142631806,4.2777,2616.3,2615.5,3.21353691]
[1739142633004,3.2078,2616.9,2616.1,3.2078]
[1739142633212,3.2078,2617.1,2616.1,3.2078]
[1739142633911,3.97189,2617.1,2616.1,3.2078]
[1739142634099,3.2078,2616.8,2615.6,3.2078]
[1739142634300,3.2078,2616.5,2615.6,3.2078]
[1739142635824,0.76439,2616.1,2615.6,3.2078]
[1739142636014,3.2078,2616.2,2615.6,3.2078]
[1739142636511,2.2401,2616.4,2615.6,3.2078]
[1739142637010,3.2078,2616.3,2615.6,3.2078]
[1739142637211,3.2078,2615.7,2615.5,0.00573691]
[1739142637417,2.0476,2615.6,2615.5,0.00573691]
[1739142637608,6.3727,2615.6,2615.5,0.00573691]
[1739142637807,6.3727,2615.6,2614.7,3.2078]
[1739142637808,7.13724,2615.6,2614.7,3.2078]
[1739142638009,3.97241,2615.4,2614.7,3.2078]
[1739142638217,3.2078,2614.8,2614.2,0.309293]
[1739142638515,7.68937772,2614.7,2613.8,3.2078]
[1739142638714,4.1919,2614.6,2613.8,3.2078]
[1739142639211,3.2078,2614.3,2613.9,0.00573691]
[1739142641517,0.76529,2613.0,2612.0,3.2078]
[1739142641717,3.2078,2612.6,2611.9,3.2078]
[1739142641915,5.5718,2612.6,2611.5,3.2078]
[1739142642115,3.2078,2612.3,2611.2,3.2078]
[1739142642512,3.2078,2612.3,2611.1,2.40950341]
[1739142642513,3.2078,2612.3,2611.5,3.2078]
[1739142642708,0.00573691,2612.0,2611.5,3.21353691]
[1739142644917,0.00573691,2612.0,2611.5,0.00573691]
[1739142645117,3.2078,2611.6,2610.6,3.2078]
[1739142645316,1.27649074,2611.9,2611.4,3.2078]
[1739142645523,3.2078,2613.0,2611.8,3.2078]
[1739142645714,3.2078,2613.0,2612.1,3.2078]
[1739142645920,3.2078,2613.0,2611.8,3.2078]
[1739142646427,9.74253138,2612.8,2611.8,3.2078]
[1739142646619,0.00573691,2612.6,2611.8,3.2078]
[1739142646823,0.00573691,2612.6,2612.1,0.00573691]
[1739142647925,0.00573691,2612.6,2612.1,3.21353691]
[1739142648627,4.24769283,2612.5,2612.1,0.00573691]
[1739142648821,0.00573691,2612.6,2612.1,0.00573691]
[1739142649125,0.00573691,2612.6,2612.1,3.21353691]
[1739142649825,0.00573691,2612.6,2612.1,0.00573691]
[1739142650219,2.1115,2613.2,2612.1,0.00573691]
[1739142650220,3.2078,2614.0,2612.4,7.68937772]
[1739142650425,3.2078,2614.3,2613.1,3.2078]
[1739142650625,3.2078,2614.3,2613.2,4.48157772]
[1739142650931,4.26248274,2614.2,2613.1,3.2078]
[1739142651130,3.2078,2613.5,2612.8,3.2078]
[1739142651331,3.2078,2613.5,2612.4,7.68937772]
[1739142651521,4.32914548,2613.4,2612.9,0.00573691]
[1739142652334,0.00572955,2613.4,2612.9,0.00573691]
[1739142653536,0.0024319,2613.7,2613.3,3.2078]
[1739142654231,0.0024319,2613.7,2613.6,3.2078]
[1739142655041,0.0024319,2613.7,2613.3,3.2078]
[1739142656729,0.0024319,2613.7,2613.6,3.2078]
[1739142657327,1e-08,2613.7,2613.6,3.2078]
[1739142657732,1e-08,2613.7,2613.3,3.2078]
[1739142658238,1e-08,2613.7,2613.6,3.2078]
[1739142658551,2.364,2614.6,2613.6,3.2078]
[1739142658731,2.364,2614.6,2613.9,3.2078]
[1739142658932,4.4140137,2614.7,2613.9,3.2078]
[1739142659234,2.1437,2614.9,2614.3,3.2078]
[1739142659540,2.1437,2614.9,2614.0,3.2078]
[1739142659733,2.1437,2614.9,2614.3,0.00573691]
[1739142660436,4.03153273,2614.8,2614.3,0.00573691]
[1739142660738,4.602,2615.0,2614.3,3.21353691]
[1739142661638,3.2078,2615.1,2614.3,0.00573691]
[1739142662727,3.97247,2615.1,2614.3,0.00573691]
[1739142662930,3.2078,2614.8,2614.3,0.00573691]
[1739142663638,0.76487,2614.4,2614.3,0.00573691]
[1739142663837,3.2078,2614.5,2614.3,0.00573691]
[1739142663838,3.97266,2614.5,2614.3,0.00573691]
[1739142664041,0.76487,2614.4,2614.3,0.00573691]
[1739142664239,4.3539002,2614.4,2613.5,3.2078]
[1739142664435,0.7649,2614.3,2613.5,3.2078]
[1739142664640,5.1187902,2614.4,2613.5,3.2078]
[1739142664835,4.3539002,2614.4,2613.5,3.2078]
[1739142665040,4.264,2614.6,2613.5,3.2078]
[1739142665338,4.264,2614.6,2613.8,3.21353691]
[1739142665339,0.00573691,2614.3,2613.8,3.21353691]
[1739142665545,3.2078,2614.2,2613.8,0.00573691]
[1739142665742,0.76502,2613.9,2613.8,0.00573691]
[1739142665941,0.76497,2614.1,2613.8,0.00573691]
[1739142666140,7.49487478,2614.2,2613.8,0.00573691]
[1739142666343,3.2078,2613.9,2613.8,0.00573691]
[1739142666746,2.362,2614.1,2613.8,0.00573691]